Workbook

Sheet Providers
A1: Insight Public Sector, Inc. NASPO ValuePoint Cloud Solutions Master Agreement # AR2485
A2: List of Cloud Solution Providers Available | B2: Solution Provided
A3: Accenture | B3: SaaS, PaaS, IaaS, Value-Added Services
A4: Acclaim | B4: SaaS, PaaS, Value-Added Services
A5: Acquia | B5: SaaS, Value-Added Services
A6: Adlumin | B6: SaaS, Value-Added Services
A7: ADSi Software | B7: SaaS, PaaS, IaaS, Value-Added Services
A8: AECOM | B8: SaaS, Value-Added Services
A9: Aeyon-Marick | B9: SaaS, Value-Added Services
A10: Agile Fleet | B10: SaaS, PaaS, Value-Added Services
A11: Agreeya | B11: SaaS, Value-Added Services
A12: A-LIGN | B12: Value-Added Services
A13: Amplifund (Streamlink Software) | B13: SaaS, Value-Added Services
A14: AMS - Alcohol Monitoring Systems (SCRAM Systems) | B14: SaaS, Value-Added Services
A15: Arcadis | B15: Value-Added Services
A16: Astadia acquired by Amdocs | B16: SaaS, Value-Added Services
A17: AtomAI Solutions | B17: SaaS, Value-Added Services
A18: Augmented Intelligence | B18: SaaS, Value-Added Services
A19: Authorium-City Innovate | B19: SaaS, Value-Added Services
A20: Avtex - TTEC | B20: IaaS, PaaS, SaaS, Value-Added Services
A21: AWS - see NASPO website | B21: SaaS, IaaS, Value-Added Services
A22: B2GNow | B22: SaaS, Value-Added Services
A23: Beyond20 | B23: SaaS, Value-Added Services
A24: Big Picture | B24: SaaS, Value-Added Services
A25: Botcopy | B25: SaaS, Value-Added Services
A26: Causeway one.network | B26: SaaS, Value-Added Services
A27: Citrix | B27: SaaS, Value-Added Services
A28: City Innovate-Authorium | B28: SaaS, PaaS, Value-Added Services
A29: Civica | B29: SaaS, PaaS, Value-Added Services
A30: Civis Analytics | B30: SaaS, Value-Added Services
A31: ClearGov | B31: SaaS, Value-Added Services
A32: Clearview | B32: SaaS, Value-Added Services
A33: Clinisys | B33: SaaS, Value-Added Services
A34: Censys | B34: SaaS, PaaS, IaaS, Value-Added Services
A35: Cloudflare | B35: SaaS, Value-Added Services
A36: Cobblestone | B36: SaaS, Value-Added Services
A37: Computronix | B37: SaaS, Value-Added Services
A38: Conduent | B38: SaaS, Value-Added Services
A39: Cornerstone OnDemand, Inc. | B39: SaaS, Value-Added Services
A40: Datagain Inc. | B40: SaaS, Value-Added Services
A41: DataHouse Consulting | B41: SaaS, Value-Added Services
A42: Dataprise - Airnet Group | B42: IaaS, PaaS, Value-Added Services
A43: Dell/EMC | B43: IaaS, PaaS, Value-Added Services
A44: Digital Construction Works, Inc. | B44: SaaS, Value-Added Services
A45: Distinctive Voice & Data | B45: SaaS, Value-Added Services
A46: Drivewyze | B46: SaaS, PaaS, IaaS, Value-Added Services
A47: Druva | B47: SaaS, Value-Added Services
A48: Early Morning Software | B48: PaaS, Value-Added Services
A49: Elasticsearch | B49: SaaS, PaaS, IaaS, Value-Added Services
A50: Encapture | B50: SaaS, PaaS, Value-Added Services
A51: Endava | B51: Value-Added Services
A52: Enformion, LLC | B52: SaaS, PaaS, Value-Added Services
A53: Eos Systems, Inc. | B53: SaaS, Value-Added Services
A54: eset | B54: SaaS, Value-Added Services
A55: eSleuth, Inc. | B55: SaaS, Value-Added Services
A56: Ellipse Solutions | B56: SaaS, Value-Added Services
A57: Experlogix | B57: SaaS, Value-Added Services
A58: FileCloud | B58: SaaS, Value-Added Services
A59: Fivecast | B59: SaaS, Value-Added Services
A60: Flairsoft | B60: SaaS, Value-Added Services
A61: Flock Safety | B61: SaaS, IaaS, Value-Added Services
A62: For the Record | B62: SaaS, Value-Added Services
A63: GenRocket | B63: SaaS, Value-Added Services
A64: getBridge | B64: IaaS, PaaS, Value-Added Services
A65: Google | B65: SaaS, PaaS, IaaS, Value-Added Services
A66: GovSpend | B66: SaaS, PaaS, IaaS, Value-Added Services
A67: Hanu | B67: SaaS, Value-Added Services
A68: Headlight Technologies Inc. (Pavia Systems) | B68: SaaS, Value-Added Services
A69: HSO | B69: SaaS, IaaS, Value-Added Services
A70: IBM | B70: SaaS, Value-Added Services
A71: Ignatiuz | B71: SaaS, Value-Added Services
A72: Image API | B72: SaaS, Value-Added Services
A73: infor | B73: SaaS, Value-Added Services
A74: Infowerks | B74: SaaS, PaaS, Value-Added Services
A75: Infoworks | B75: SaaS, Value-Added Services
A76: Irth Solutions | B76: SaaS, Value-Added Services
A77: Instructure Inc. | B77: SaaS, Value-Added Services
A78: JDi Data | B78: SaaS, Value-Added Services
A79: JustFOIA | B79: SaaS, Value-Added Services
A80: Kemp | B80: SaaS, Value-Added Services
A81: KinderSystems | B81: SaaS, PaaS, IaaS, Value-Added Services
A82: Logic Monitor | B82: SaaS, Value-Added Services
A83: MaiVERIC | B83: SaaS, Value-Added Services
A84: MapLight | B84: SaaS, Value-Added Services
A85: Markable Technologies, Inc. dba ZipFlow | B85: SaaS, Value-Added Services
A86: Maryville Consulting Group | B86: SaaS, PaaS, IaaS, Value-Added Services
A87: Microsoft (non CSP) | B87: SaaS, PaaS, IaaS, Value-Added Services
A88: Microsoft (CSP) | B88: SaaS, PaaS, IaaS, Value-Added Services
A89: Mon Ami | B89: SaaS, Value-Added Services
A90: MooveAI | B90: SaaS, Value-Added Services
A91: Movilio | B91: SaaS, Value-Added Services
A92: MS2 (Midwestern Software Solutions) | B92: SaaS, Value-Added Services
A93: NEOGOV (Power DMS) | B93: IaaS, PaaS, Value-Added Services
A94: NetApp | B94: SaaS, IaaS, Value-Added Services
A95: NetScout | B95: SaaS, Value-Added Services
A96: ObservIQ, Inc. (DBA Bindplane) | B96: SaaS, Value-Added Services
A97: Onyx | B97: SaaS, Value-Added Services
A98: OpenDataSoft | B98: SaaS, Value-Added Services
A99: OPSWAT | B99: SaaS, Value-Added Services
A100: Panorama Education Inc | B100: SaaS, PaaS, Value-Added Services
A101: Pega | B101: SaaS, Value-Added Services
A102: Pixo VR | B102: SaaS, PaaS, Value-Added Services
A103: Plante Moran | B103: SaaS, Value-Added Services
A104: Pluralsight | B104: SaaS, Value-Added Services
A105: Prepared911 | B105: SaaS, Value-Added Services
A106: Presidio | B106: SaaS, Value-Added Services
A107: ProcessMaker | B107: SaaS, Value-Added Services
A108: Procredex | B108: SaaS, PaaS, Value-Added Services
A109: Progress Software | B109: SaaS, Value-Added Services
A110: Projility | B110: SaaS, Value-Added Services
A111: Proven | B111: SaaS, Value-Added Services
A112: PruTech | B112: SaaS, Value-Added Services
A113: Pulselight | B113: SaaS, Value-Added Services
A114: PSR Information System Services | B114: SaaS, Value-Added Services
A115: Reduct Video | B115: PaaS, Value-Added Services
A116: ReliaQuest | B116: SaaS, Value-Added Services
A117: REVTech | B117: SaaS, Value-Added Services
A118: Radwin | B118: SaaS, Value-Added Services
A119: RiskLens | B119: SaaS, Value-Added Services
A120: ROK Technologies | B120: SaaS, Value-Added Services
A121: Rubrik | B121: SaaS, Value-Added Services
A122: SeamlessDocs | B122: SaaS, Value-Added Services
A123: SentinelOne | B123: SaaS, Value-Added Services
A124: servpac | B124: SaaS, Value-Added Services
A125: Silk | B125: IaaS, Value-Added Services
A126: simpligov | B126: SaaS, Value-Added Services
A127: Skyline | B127: SaaS, Value-Added Services
A128: Slalom | B128: SaaS, Value-Added Services
A129: SmartCop | B129: SaaS, Value-Added Services
A130: Social Solutions | B130: SaaS, PaaS, Value-Added Services
A131: SpringML | B131: SaaS, Value-Added Services
A132: SteadyIQ | B132: SaaS, PaaS, IaaS, Value-Added Services
A133: Streetlight Data | B133: SaaS, Value-Added Services
A134: System Automation | B134: SaaS, PaaS, Value-Added Services
A135: Tanium | B135: SaaS, Value-Added Services
A136: Tailored Solutions Corporation | B136: Value-Added Services
A137: Technology Management Solutions, Inc. | B137: Value-Added Services
A138: Teradact | B138: SaaS, Value-Added Services
A139: Tenable | B139: SaaS, Value-Added Services
A140: Therap | B140: SaaS, PaaS, IaaS, Value-Added Services
A141: Thentia | B141: SaaS, Value-Added Services
A142: Trace First | B142: SaaS, Value-Added Services
A143: Trend Micro | B143: SaaS, PaaS, IaaS, Value-Added Services
A144: Trimble | B144: SaaS, Value-Added Services
A145: Trinisys | B145: SaaS, Value-Added Services
A146: TrustCircle | B146: SaaS, Value-Added Services
A147: UiPath | B147: SaaS, Value-Added Services
A148: Varonis | B148: SaaS, PaaS, IaaS, Value-Added Services
A149: Veeam | B149: SaaS, Value-Added Services
A150: Verkada | B150: SaaS, Iaas, Value-Added Services
A151: Versaterm | B151: SaaS, PaaS, IaaS, Value-Added Services
A152: Vertosoft | B152: IaaS, PaaS, SaaS, Value-Added Services
A153: VMware - see NASPO website | B153: SaaS, PaaS, IaaS, Value-Added Services
A154: Wasabi | B154: SaaS, PaaS, IaaS, Value-Added Services
A155: Who I Am | B155: SaaS, PaaS, Value-Added Services
A156: WP Engine | B156: SaaS, Value-Added Services
A157: Zpro Solutions | B157: SaaS, Value-Added Services

Sheet SKU's
A1: Manufacturer | B1: Part Number | C1: Item Name | D1: License Agreement Type | E1: Program | F1: Offering | G1: Level | H1: Purchase Unit | I1: Retail Price | J1: NASPO VP List Price
A2: Accenture | B2: ProjExec | C2: Project Executive | H2: Per Hour | I2: $425.00 | J2: $420.75
A3: Accenture | B3: ProInvLead | C3: Process Innovation Lead | H3: Per Hour | I3: $395.00 | J3: $391.05
A4: Accenture | B4: ProInvConsultant | C4: Process Innovation Consultant | H4: Per Hour | I4: $275.00 | J4: $272.25
A5: Accenture | B5: FuncSMEPeoplesoft | C5: Functional SME - Peoplesoft | H5: Per Hour | I5: $260.00 | J5: $257.40
A6: Accenture | B6: AutoLead | C6: Automation Lead | H6: Per Hour | I6: $350.00 | J6: $346.50
A7: Accenture | B7: UIPath Arch | C7: UI Path Technical Architect | H7: Per Hour | I7: $340.00 | J7: $336.60
A8: Accenture | B8: UIPath DevMngr | C8: UI Path Development - Manager | H8: Per Hour | I8: $310.00 | J8: $306.90
A9: Accenture | B9: UIPathDevConsultant | C9: UI Path Development - Consultant | H9: Per Hour | I9: $270.00 | J9: $267.30
A10: Accenture | B10: UIPathDevAnalyst | C10: UI Path Development - Analyst | H10: Per Hour | I10: $220.00 | J10: $217.80
A11: Accenture | B11: ACN-SOW1-CCCC | C11: ACCENTURE SOW 1 CHILD CARE CONTACT CENTER –BACKGROUND | I11: $6,690,000.00 | J11: $6,623,100.00
A12: Accenture | B12: ACN-SOW2-CCPS | C12: ACCENTURE SOW 2 CHILD CARE PROGRAM SUPPORT - BACKGROUND | I12: $2,400,000.00 | J12: $2,376,000.00
A13: Accenture | B13: AWSCONNECTSERV-STN | C13: ACCENTURE SOW 3 Amazon Connect Service | I13: $188,000.00 | J13: =I13-(I13*0.01) -> $186,120.00
A14: Accenture | B14: Cloud-DL | C14: Delivery Lead - Cloud Migration | F14: Cloud | H14: Per Hour | I14: $508.03 | J14: $502.95
A15: Accenture | B15: Functional Lead | C15: Functional Lead - Cloud Migration | F15: Cloud | H15: Per Hour | I15: $425.00 | J15: $420.75
A16: Accenture | B16: Cloud-RM | C16: Release / Wave Manager - Cloud Migration | F16: Cloud | H16: Per Hour | I16: $317.50 | J16: $314.33
A17: Accenture | B17: Cloud-ARL | C17: App Readiness Lead - Cloud Migration | F17: Cloud | H17: Per Hour | I17: $319.00 | J17: $315.81
A18: Accenture | B18: Cloud-SecAnalyst | C18: Security Analyst - Cloud Migration | F18: Cloud | H18: Per Hour | I18: $347.88 | J18: $344.40
A19: Accenture | B19: Cloud-PlatformArch | C19: Platform Architect - Cloud Migration | F19: Cloud | H19: Per Hour | I19: $333.41 | J19: $330.08
A20: Accenture | B20: Cloud-MigrationEngLead | C20: Migration Engineer - Lead | F20: Cloud | H20: Per Hour | I20: $319.00 | J20: $315.81
A21: Accenture | B21: Cloud-DL-LCDL | C21: Delivery Lead (LCDL) - Cloud Migration | F21: Cloud | H21: Per Hour | I21: $101.25 | J21: $100.24
A22: Accenture | B22: Cloud-Migration Arch-LCDL | C22: Migration Architect (LCDL) - Cloud | F22: Cloud | H22: Per Hour | I22: $78.75 | J22: $77.96
A23: Accenture | B23: Cloud-MigrationEngSr - LCDL | C23: Migration Engineer - Senior (LCDL) - Cloud | F23: Cloud | H23: Per Hour | I23: $73.75 | J23: $73.01
A24: Accenture | B24: Cloud-MigrationEng - LCDL | C24: Migration Engineer (LCDL) - Cloud | F24: Cloud | H24: Per Hour | I24: $66.25 | J24: $65.59
A25: Accenture | B25: Cloud-DataEng - LCDL | C25: Database Engineer (LCDL) - Cloud | F25: Cloud | H25: Per Hour | I25: $66.25 | J25: $65.59
A26: Accenture | B26: ACN-PEBTR4-PS-TNDF | C26: PEBT Round 4 Program Support | I26: $3,000,000.00 | J26: $2,970,000.00
A27: Accenture | B27: ACN-PEBTR4-CC-TNDF | C27: PEBT Round 4 Contact Center | I27: $3,200,000.00 | J27: $3,168,000.00
A28: Accenture | B28: ACNPEBTR4CEA-TNDF | C28: PEBT Round 4 Customer Experience Automation | I28: $1,050,000.00 | J28: $1,039,500.00
A29: Accenture | B29: ACN-PEBTR4-TI-TNDF | C29: PEBT Round 4 Technology Implementation | I29: $3,650,000.00 | J29: $3,613,500.00
A30: Accenture | B30: CS - DL | C30: TDEC - Overall Delivery Lead | F30: Delivery Enablement | H30: Per Hour | I30: $295.00 | J30: $292.05
A31: Accenture | B31: CS - DevLead | C31: Development Lead | F31: Delivery Enablement | H31: Per Hour | I31: $285.00 | J31: $282.15
A32: Accenture | B32: CS - EngLead | C32: Engineering Lead | F32: Delivery Enablement | H32: Per Hour | I32: $285.00 | J32: $282.15
A33: Accenture | B33: CS - Dev-Sr | C33: Developer - Sr | F33: Delivery Enablement | H33: Per Hour | I33: $200.00 | J33: $198.00
A34: Accenture | B34: CS - Dev | C34: Developer | F34: Delivery Enablement | H34: Per Hour | I34: $180.00 | J34: $178.20
A35: Accenture | B35: CS - Dev - Java | C35: Developer - Java | F35: Delivery Enablement | H35: Per Hour | I35: $185.00 | J35: $183.15
A36: Accenture | B36: CS-Test-Lead | C36: Testing Lead | F36: Delivery Enablement | H36: Per Hour | I36: $285.00 | J36: $282.15
A37: Accenture | B37: CS-Funct-Test-Lead | C37: Functional Testing Lead | F37: Delivery Enablement | H37: Per Hour | I37: $235.00 | J37: $232.65
A38: Accenture | B38: CS-Test-Eng-Sr | C38: Test Engineer - Sr. | F38: Delivery Enablement | H38: Per Hour | I38: $170.00 | J38: $168.30
A39: Accenture | B39: CS-Test-Eng | C39: Test Engineer | F39: Delivery Enablement | H39: Per Hour | I39: $145.00 | J39: $143.55
A40: Accenture | B40: CS-Test-Eng-Assoc | C40: Test Engineer - Assoc | F40: Delivery Enablement | H40: Per Hour | I40: $130.00 | J40: $128.70
A41: Accenture | B41: CS-QE-Sr | C41: Quality Engineers - Sr (SDET) | F41: Delivery Enablement | H41: Per Hour | I41: $181.00 | J41: $179.19
A42: Accenture | B42: CS-QE | C42: Quality Engineer (SDET) | F42: Delivery Enablement | H42: Per Hour | I42: $160.00 | J42: $158.40
A43: Accenture | B43: CS-AutoArch | C43: Automation Architect | F43: Delivery Enablement | H43: Per Hour | I43: $235.00 | J43: $232.65
A44: Accenture | B44: CS-AutoEng | C44: Automation Engineer - Sr. | F44: Delivery Enablement | H44: Per Hour | I44: $181.00 | J44: $179.19
A45: Accenture | B45: CS-Agile-Coach | C45: Agile Coach | F45: Delivery Enablement | H45: Per Hour | I45: $375.00 | J45: $371.25
A46: Accenture | B46: CS-QALead-LCDL | C46: QA Lead - LCDL | F46: Delivery Enablement | H46: Per Hour | I46: $97.00 | J46: $96.03
A47: Accenture | B47: CS-Test-Eng-Sr-LCDL | C47: Test Engineer - Sr. LCDL | F47: Delivery Enablement | H47: Per Hour | I47: $61.00 | J47: $60.39
A48: Accenture | B48: CS-Test-Eng-LCDL | C48: Test Engineer - LCDL | F48: Delivery Enablement | H48: Per Hour | I48: $59.00 | J48: $58.41
A49: Accenture | B49: CS-QE-Sr-LCDL | C49: Quality Engineers - Sr - LCDL (SDET) | F49: Delivery Enablement | H49: Per Hour | I49: $65.00 | J49: $64.35
A50: Accenture | B50: CS-QE -LCDL | C50: Quality Engineer - LCDL (SDET) | F50: Delivery Enablement | H50: Per Hour | I50: $62.00 | J50: $61.38
A51: Accenture | B51: CS-AUTOARCH-LCDL | C51: Automation Architect | H51: Per Hour | I51: $57.00 | J51: $56.43
A52: Accenture | B52: CS-AutoLead-LCDL | C52: Automation Lead - LCDL | F52: Delivery Enablement | H52: Per Hour | I52: $73.00 | J52: $72.27
A53: Accenture | B53: CS-AutoEng-Sr-LCDL | C53: Automation Engineer - Sr LCDL | F53: Delivery Enablement | H53: Per Hour | I53: $70.00 | J53: $69.30
A54: Accenture | B54: CS-AutoEng-LCDL | C54: Automation Engineer - LCDL | F54: Delivery Enablement | H54: Per Hour | I54: $65.00 | J54: $64.35
A55: Accenture | B55: CS-DevOps-Sr-LCDL | C55: DevOps Engineer - Sr. - LCDL | F55: Delivery Enablement | H55: Per Hour | I55: $75.00 | J55: $74.25
A56: Accenture | B56: CS-DevOps-LCDL | C56: DevOps Engineer - LCDL | F56: Delivery Enablement | H56: Per Hour | I56: $73.00 | J56: $72.27
A57: Accenture | B57: CS-Jira-Sr-LCDL | C57: Jira Configuration Engineer - Sr. - LCDC | F57: Delivery Enablement | H57: Per Hour | I57: $67.00 | J57: $66.33
A58: Accenture | B58: CS-Jira-LCDL | C58: Jira Configuration Engineer - LCDC | F58: Delivery Enablement | H58: Per Hour | I58: $65.00 | J58: $64.35
A59: Accenture | B59: CS-Jira-Assc-LCDL | C59: Jira Configuration Engineer - Assoc - LCDC | F59: Delivery Enablement | H59: Per Hour | I59: $58.00 | J59: $57.42
A60: Accenture | B60: ACTN-SOW | C60: Accenture SOW | I60: $1,750,000.00 | J60: $1,732,500.00
A61: Accenture | B61: ACC-ECHFDP1-TNFA | C61: TN Dept of Finance - Education Cloud High-Fidelity Design (Phase1) | I61: $2,000,000.00 | J61: $1,980,000.00
A62: Accenture | B62: ACC-ECHFDP2-TNFA | C62: TN Dept of Finance - Education Cloud High-Fidelity Design (Phase 2) | I62: $1,200,000.00 | J62: $1,188,000.00
A63: Accenture | B63: ACCT-SVC-1-TNFA | C63: Services to transform customer support capabilities | I63: $2,500,000.00 | J63: $2,475,000.00
A64: Accenture | B64: ACCT-SVC-2-TNFA | C64: Cloud based CRM design and core implementation for unified contact center | I64: $1,500,000.00 | J64: $1,485,000.00
A65: Accenture | B65: ACN-AP-SVC-TNFA | C65: Adult Protective Services Customer Experience Improvement | I65: $500,000.00 | J65: $495,000.00
A66: Accenture | B66: PEBTFORTNDHS | C66: Provide business process definition, staffing support for cases, and technical enhancements in ServiceNow for P-EBT Appeals | I66: $2,500,000.00 | J66: $2,475,000.00
A67: Accenture | B67: ACNT-OTF-SVC-1 | C67: ACCENTURE-ONE-TIME FEE FOR SERVICES RENDERED DURING SPECIFIC MONTH-JUNE 2022 | I67: $89,800.00 | J67: $88,902.00
A68: Accenture | B68: ACNT-OTF-SVC-2 | C68: ACCENTURE-ONE-TIME FEE FOR SERVICES RENDERED DURING SPECIFIC MONTH-JULY 2022 | I68: $55,400.00 | J68: $54,846.00
A69: Accenture | B69: ACNT-CDC-3MO-SOTD | C69: TN DEPARTMENT OF TRANSPORTATION SERVICE CATALOG DESCRIPTION FOR CONTACT CENTER WORK INITIAL 3 MONTH ENGAGEMENT | I69: $4,040,000.00 | J69: $3,999,600.00
A70: Accenture | B70: ACN-P-EBT-A-SOW1 | C70: ACCENTURE SOW PROVIDE BUSINESS PROCESS DEFINITION, STAFFING SUPPORT FOR CASES FOR P-EBT APPEALS | I70: $1,353,000.00 | J70: $1,339,470.00
A71: Accenture | B71: ACN-P-EBT-A-SOW2 | C71: ACCENTURE SOW PROVIDE TECHNICAL ENHANCEMENTS IN SERVICENOW FOR P-EBT APPEALS | I71: $495,000.00 | J71: $490,050.00
A72: Accenture | B72: ACNDHSCCBUSOP-TNDH | C72: TN DEPT OF HEALTH - DHS CONTACT CENTER – BUSINESS AND OPERATIONAL READINESS | I72: $4,206,000.00 | J72: $4,163,940.00
A73: Accenture | B73: ACN-PHASE2-TNDE | C73: TN DEPT OF EDUCATION ACCENTURE PHASE 2 | I73: $2,900,000.00 | J73: $2,871,000.00
A74: Accenture | B74: VSOW-45543 | C74: ACCENTURE CONTRACT 1 (VSOW 45543) | I74: $172,000.00 | J74: $170,280.00
A75: Accenture | B75: VSOW-45715 | C75: ACCENTURE CONTRACT 2 (VSOW 45715) | I75: $234,000.00 | J75: $231,660.00
A76: Accenture | B76: ACT-SPRT-TDOE | C76: ACCENTURE DISTRICT OPERATIONS SUPPORT | I76: $800.00 | J76: $792.00
A77: Accenture | B77: ACT-TEARSDE | C77: ACCENTURE TEACHER RETENTION SERVICE DESIGN | I77: $2,250,000.00 | J77: $2,227,500.00
A78: Accenture | B78: ACNTDCSFMENH-TDCS | C78: DCS Financial Module Enhancement - Improve the consistency in payment processing and transaction processing to be within the control of the application, TFACTS | I78: $1,500,000.00 | J78: $1,485,000.00
A79: Accenture | B79: ACCT-PH3-SVC-TNDE | C79: Best for All Plan sets a vision and intention that it will set all students on a path to success. This phase 3 of services will deliver on the vision for the TN Department of Education | I79: $5,100,000.00 | J79: $5,049,000.00
A80: Accenture | B80: Cloud-FT-EL-DCS | C80: Accenture Engagement Lead | F80: Cloud | H80: Per Hour | I80: $395.00 | J80: $391.05
A81: Accenture | B81: Cloud-FT-DL-DCS | C81: Accenture Delivery Lead | F81: Cloud | H81: Per Hour | I81: $395.00 | J81: $391.05
A82: Accenture | B82: Cloud-FT-FAA-DCS | C82: Accenture Financial Application Architect | F82: Cloud | H82: Per Hour | I82: $370.00 | J82: $366.30
A83: Accenture | B83: Cloud-FT-FA-DCS | C83: Accenture Financial Analyst | F83: Cloud | H83: Per Hour | I83: $354.00 | J83: $350.46
A84: Accenture | B84: Cloud-FT-BA-DCS | C84: Accenture Business Analyst | F84: Cloud | H84: Per Hour | I84: $354.00 | J84: $350.46
A85: Accenture | B85: Cloud-FT-SM-DCS | C85: Accenture Scrum Master | F85: Cloud | H85: Per Hour | I85: $291.00 | J85: $288.09
A86: Accenture | B86: Cloud-FT-SD-DCS | C86: Accenture Sr. Developer | F86: Cloud | H86: Per Hour | I86: $291.00 | J86: $288.09
A87: Accenture | B87: Cloud-FT-DLCDC-DCS | C87: Accenture Developer (LCDC) | F87: Cloud | H87: Per Hour | I87: $95.00 | J87: $94.05
A88: Accenture | B88: CloudFTTELCDC-DCS | C88: Accenture Test Engineer (LCDC) | F88: Cloud | H88: Per Hour | I88: $75.00 | J88: $74.25
A89: Accenture | B89: ACNTVIRTASSIS-TNDF | C89: TDHS - Virtual Assistant Services | I89: $500,000.00 | J89: $495,000.00
A90: Accenture | B90: ACNTTEXTMESSPE-STN | C90: Provide Text Messaging Communications to PEBT, Develop customer journeys and conversations related to text messaging, provide reporting related to text messaging | I90: $1,600,000.00 | J90: $1,584,000.00
A91: Accenture | B91: ACN-PEBTR4-PS-TNDF | C91: TN Dept of Finance and Admin PEBT Round 4 Program Support | I91: $6,500,000.00 | J91: $6,435,000.00
A92: Accenture | B92: ACN-PEBTR4-CC-TNDF | C92: TN Dept of Finance and Admin PEBT Round 4 Contact Center | I92: $7,700,000.00 | J92: $7,623,000.00
A93: Accenture | B93: ACNPEBTR4CEA-TNDF | C93: TN Dept of Finance and Admin PEBT Round 4 Customer Experience Automation | I93: $1,700,000.00 | J93: $1,683,000.00
A94: Accenture | B94: ACN-PEBTR4-TI-TNDF | C94: TN Dept of Finance and Admin PEBT Round 4 Technlogy Implementation | I94: $7,650,000.00 | J94: $7,573,500.00
A95: Accenture | B95: ACNTDHSSNPLATSPRTS | C95: DHS ServiceNow Platform Support Services | I95: $1,100,000.00 | J95: $1,089,000.00
A96: Accenture | B96: ACNTTDOEPEBTPROGSP | C96: TDOE PEBT Program Support Services | I96: $4,000,000.00 | J96: $3,960,000.00
A97: Accenture | B97: ACC-TFACTS-ENH | C97: Accenture TFACTS Enhancement Team | I97: $2,100,000.00 | J97: $2,079,000.00
A98: Accenture | B98: ACNT-TFACTS-ET-SVC | C98: Accenture TFACTS Enhancment Team - Provide DHS with contact center agent staff and operational support to launch and run the One DHS Contact Center and provide service to DHS customer inquiries across voice (IVR) and digital (live chat, email, webform) channels | I98: $1,650,000.00 | J98: $1,633,500.00
A99: Accenture | B99: DHSASERV | C99: Prepare Operational Strategy and Roadmap that details priority agency objectives and sequenced initiatives for the next approximately 5 years | I99: $150,000.00 | J99: $148,500.00
A100: Accenture | B100: ACNTOBFACONCX-TNFA | C100: Onboarding of FA County Offices to NICE CXone Platform | I100: $1,750,000.00 | J100: $1,732,500.00
A101: Accenture | B101: IAM-DE | C101: IAM Delivery Executive / Lead Architect | F101: Identify Access Management | H101: Per Hour | I101: $395.00 | J101: $391.05
A102: Accenture | B102: IAM-Cons | C102: IAM/OCM ForgeRock Consultant | F102: Identify Access Management | H102: Per Hour | I102: $370.00 | J102: $366.30
A103: Accenture | B103: IAM-DL / SA | C103: ForgeRock Delivery Lead / Solution Architect | F103: Identify Access Management | H103: Per Hour | I103: $370.00 | J103: $366.30
A104: Accenture | B104: IAM-DevLead | C104: ForgeRock Development Lead | F104: Identify Access Management | H104: Per Hour | I104: $310.00 | J104: $306.90
A105: Accenture | B105: IAM-Sr.Dev | C105: Sr. ForgeRock Developer | F105: Identify Access Management | H105: Per Hour | I105: $291.00 | J105: $288.09
A106: Accenture | B106: IAM-Dev-LCDC | C106: ForgeRock Developers – LCDC | F106: Identify Access Management | H106: Per Hour | I106: $95.00 | J106: $94.05
A107: Accenture | B107: IAM-DE-TNFA | C107: TN DEPT OF FINANCE AND ADMIN ACCENTURE IAM DELIVERY EXECUTIVE / LEAD ARCHITECT | I107: $313.00 | J107: $309.87
A108: Accenture | B108: IAM-CONS-TNFA | C108: TN DEPT OF FINANCE AND ADMIN ACCENTURE IAM/OCM FORGEROCK CONSULTANT | I108: $223.00 | J108: $220.77
A109: Accenture | B109: IAM-DL/SA-TNFA | C109: TN DEPT OF FINANCE AND ADMIN ACCENTURE FORGEROCK DELIVERY LEAD / SOLUTION ARCHITECT | I109: $221.00 | J109: $218.79
A110: Accenture | B110: IAM-DEVLEAD-TNFA | C110: TN DEPT OF FINANCE AND ADMIN ACCENTURE FORGEROCK DEVELOPMENT LEAD | I110: $216.00 | J110: $213.84
A111: Accenture | B111: IAM-SR.DEV-TNFA | C111: TN DEPT OF FINANCE AND ADMIN ACCENTURE SR. FORGEROCK DEVELOPER | I111: $212.00 | J111: $209.88
A112: Accenture | B112: IAM-DEV-LCDC-TNFA | C112: TN DEPT OF FINANCE AND ADMIN ACCENTURE FORGEROCK DEVELOPERS – LCDC | I112: $67.00 | J112: $66.33
A113: Accenture | B113: TDOEPSDRACCENTURE | C113: TENNESSEE DEPARTMENT OF EDUCATION PRESCHOOL STRATEGY DEVELOPMENT AND REFINEMENT | I113: $1,600,000.00 | J113: $1,584,000.00
A114: Accenture | B114: ACCENTURETNDHS-DHS | C114: ACCENTURE PROVIDE POLICY AND COMPLIANCE SUPPORT, BUSINESS PROCESS DEFINITION, AND TECHNICAL CONFIGURATION SUPPORT IN SERVICENOW FOR PROGRAMS AND GRANTS IN TN, DHS | I114: $3,600,000.00 | J114: $3,564,000.00
A115: Accenture | B115: ACNT-GYO-PH2-TNDE | C115: TN DEPT OF EDUCATION ACCENTURE TDOE GYO PHASE 2 | I115: $470,000.00 | J115: $465,300.00
A116: Accenture | B116: ACC-SNAP-SOW-TN | C116: Proactive Communications for SNAP Participants - SOW | I116: $1,621,000.00 | J116: $1,604,790.00
A117: Acclaim | B117: USAHERDS | C117: US Animal Health Emergency Reporting Diagnostic System | I117: $199,000.00 | J117: $197,010.00
A118: Acquia | B118: G2-2XL | C118: Gen2 2XL | I118: $9,000.20 | J118: $8,910.20
A119: Acquia | B119: G2-2XL-CPU | C119: Gen2 2XL CPU+ | I119: $6,750.70 | J119: $6,683.19
A120: Acquia | B120: G2-2XL-STOR | C120: Gen2 2XL Stor+ | I120: $27,401.00 | J120: $27,126.99
A121: Acquia | B121: G2-4XL-CPU | C121: Gen2 4XL CPU+ | I121: $13,499.20 | J121: $13,364.21
A122: Acquia | B122: G2-4XL-STOR | C122: Gen2 4XL Stor+ | I122: $54,800.90 | J122: $54,252.89
A123: Acquia | B123: G2-8XL-CPU | C123: Gen2 8XL CPU+ | I123: $26,999.50 | J123: $26,729.51
A124: Acquia | B124: G2-8XL-STOR | C124: Gen2 8XL Stor+ | I124: $109,601.80 | J124: $108,505.78
A125: Acquia | B125: G2-LRG | C125: Gen2 Large | I125: $2,250.60 | J125: $2,228.09
A126: Acquia | B126: G2-LRG-CPU | C126: Gen2 Large CPU+ | I126: $1,688.50 | J126: $1,671.62
A127: Acquia | B127: G2-XL | C127: Gen2 XL | I127: $4,500.10 | J127: $4,455.10
A128: Acquia | B128: G2-XL-CPU | C128: Gen2 XL CPU+ | I128: $3,374.80 | J128: $3,341.05
A129: Acquia | B129: G2-XL-STOR | C129: Gen2 XL Stor+ | I129: $13,708.20 | J129: $13,571.12
A130: Acquia | B130: SB.H.HH.00219 | C130: Acquia Cloud Instance Dedicated Hypervisor Large | I130: $2,475.00 | J130: $2,450.25
A131: Acquia | B131: SB.H.HH.00220 | C131: Acquia Cloud Instance Dedicated Hypervisor Extra Large | I131: $4,950.00 | J131: $4,900.50
A132: Acquia | B132: SB.H.HH.00221 | C132: Acquia Cloud Instance Dedicated Hypervisor 2XL | I132: $9,900.00 | J132: $9,801.00
A133: Acquia | B133: SB.H.HH.00222 | C133: Acquia Cloud Instance Dedicated Hypervisor Large CPU+ | I133: $1,870.00 | J133: $1,851.30
A134: Acquia | B134: SB.H.HH.00223 | C134: Acquia Cloud Instance Dedicated Hypervisor XL CPU+ | I134: $3,718.00 | J134: $3,680.82
A135: Acquia | B135: SB.H.HH.00224 | C135: Acquia Cloud Instance Dedicated Hypervisor 2XL CPU+ | I135: $7,425.00 | J135: $7,350.75
A136: Acquia | B136: SB.H.HH.00225 | C136: Acquia Cloud Instance Dedicated Hypervisor 4XL CPU+ | I136: $14,850.00 | J136: $14,701.50
A137: Acquia | B137: SB.H.HH.00226 | C137: Acquia Cloud Instance Dedicated Hypervisor 8XL CPU+ | I137: $27,005.00 | J137: $26,734.95
A138: Acquia | B138: SB.H.HH.00227 | C138: Acquia Cloud Instance Dedicated Hypervisor XL Stor+ | I138: $15,081.00 | J138: $14,930.19
A139: Acquia | B139: SB.H.HH.00228 | C139: Acquia Cloud Instance Dedicated Hypervisor 2XL Stor+ | I139: $30,151.00 | J139: $29,849.49
A140: Acquia | B140: SB.H.HH.00229 | C140: Acquia Cloud Instance Dedicated Hypervisor 4XL Stor+ | I140: $60,291.00 | J140: $59,688.09
A141: Acquia | B141: SB.H.HH.00230 | C141: Acquia Cloud Instance Dedicated Hypervisor 8XL Stor+ | I141: $109,604.00 | J141: $108,507.96
A142: Acquia | B142: SB.H.HH.00297 | C142: AC Cluster DH Medium | I142: $12,300.00 | J142: $12,177.00
A143: Acquia | B143: SB.H.HH.00302 | C143: AC Cluster DH FT Medium | I143: $27,860.00 | J143: $27,581.40
A144: Acquia | B144: SB.H.HH.00352S | C144: AC Cluster FT Small | I144: $15,900.00 | J144: $15,741.00
A145: Acquia | B145: SB.H.HH.00006 | C145: Acquia Cloud Cluster Gen2 Small Highly-available web & database (2 AC Instance Gen2 Large CPU+: 7 ACU, 3.75 GB); Shared load balancer; Dedicated dev/staging (1 Gen2 Large CPU+: 7 ACU; 3.75 GB) | I145: $5,064.40 | J145: $5,013.76
A146: Acquia | B146: SB.H.HH.00086 | C146: Acquia Cloud Cluster Gen2 Medium Highly-available web & database (2 AC Instance Gen2 Large: 6.5 ACU, 7.5 GB); Shared load balancer; Dedicated dev/staging (1 Gen2 Large CPU+: 7 ACU; 3.75 GB) | I146: $6,189.70 | J146: $6,127.80
A147: Acquia | B147: SB.H.HH.00087 | C147: Acquia Cloud Cluster Gen2 Large Highly-available web & database (2 AC Instance Gen2 XL: 13 ACU, 15 GB); Shared load balancer; Dedicated dev/staging (1 Gen2 Large CPU+: 7 ACU; 3.75 GB) | I147: $10,687.60 | J147: $10,580.72
A148: Acquia | B148: SB.H.HH.00088 | C148: Acquia Cloud Cluster Gen2 XL Highly-available web & database (2 AC Instance Gen2 2XL: 26 ACU, 30 GB); Shared load balancer; Dedicated dev/staging (1 Gen2 Large CPU+: 7 ACU; 3.75 GB) | I148: $19,687.80 | J148: $19,490.92
A149: Acquia | B149: SB.H.HH.00089 | C149: Acquia Cloud Cluster Gen2 Multi-tier Medium Highly-available web (2 AC Instance Gen2 Large CPU+: 7 ACU, 3.75 GB); HA database (2 AC Instance Gen2 XL CPU+: 14 ACU, 7.5 GB); Dedicated load balancer (1 pair AC Instance Gen1 Medium: 2 ACU, 3.75 GB); Dedicated dev/staging (1 Gen2 Large CPU+: 7 ACU; 3.75 GB) | I149: $15,202.00 | J149: $15,049.98
A150: Acquia | B150: SB.H.HH.00090 | C150: Acquia Cloud Cluster Gen2 Multi-tier Large Highly-available web (4 AC Instance Gen2 Large CPU+: 7 ACU, 3.75 GB); HA database (2 AC Instance Gen2 XL CPU+: 14 ACU, 7.5 GB); Dedicated load balancer (2 x Gen2 Large CPU+: 7 ACU, 3.75 GB); Dedicated dev/staging (1 Gen2 Large CPU+: 7 ACU; 3.75 GB) | I150: $18,579.00 | J150: $18,393.21
A151: Acquia | B151: SB.H.HA.SSD.DBS.100 | C151: Acquia Cloud Enterprise HA DB SSD Storage and DR ANNUAL - 100 GB | I151: $2,760.00 | J151: $2,732.40
A152: Acquia | B152: SB.H.HA.SSD.DBS.1TB | C152: Acquia Cloud Enterprise HA DB SSD Storage and DR ANNUAL - 1 TB | I152: $28,260.00 | J152: $27,977.40
A153: Acquia | B153: SB.H.HA.SSD.DBS.200 | C153: Acquia Cloud Enterprise HA DB SSD Storage and DR ANNUAL - 200 GB | I153: $5,520.00 | J153: $5,464.80
A154: Acquia | B154: SB.H.HA.SSD.DBS.250 | C154: Acquia Cloud Enterprise HA DB SSD Storage and DR ANNUAL - 250 GB | I154: $6,900.00 | J154: $6,831.00
A155: Acquia | B155: SB.H.HA.SSD.DBS.500 | C155: Acquia Cloud Enterprise HA DB SSD Storage and DR ANNUAL - 500 GB | I155: $13,800.00 | J155: $13,662.00
A156: Acquia | B156: SB.H.HA.SSD.DBS.750 | C156: Acquia Cloud Enterprise HA DB SSD Storage and DR ANNUAL - 750 GB | I156: $20,700.00 | J156: $20,493.00
A157: Acquia | B157: SB.H.HA.SSD.DBS.FI | C157: Acquia Cloud Enterprise HA DB SSD Storage and DR ANNUAL - 50 GB | I157: $1,380.00 | J157: $1,366.20
A158: Acquia | B158: SB.H.HA.SSD.DBS.TW | C158: Acquia Cloud Enterprise HA DB SSD Storage and DR ANNUAL - 25 GB | I158: $690.00 | J158: $683.10
A159: Acquia | B159: SB.H.HA.SSD.FSS.100 | C159: Acquia Cloud Enterprise HA File System SSD Storage and DR ANNUAL - 100 GB | I159: $2,760.00 | J159: $2,732.40
A160: Acquia | B160: SB.H.HA.SSD.FSS.1TB | C160: Acquia Cloud Enterprise HA File System SSD Storage and DR ANNUAL - 1 TB | I160: $28,260.00 | J160: $27,977.40
A161: Acquia | B161: SB.H.HA.SSD.FSS.200 | C161: Acquia Cloud Enterprise HA File System SSD Storage and DR ANNUAL - 200 GB | I161: $5,520.00 | J161: $5,464.80
A162: Acquia | B162: SB.H.HA.SSD.FSS.250 | C162: Acquia Cloud Enterprise HA File System SSD Storage and DR ANNUAL - 250 GB | I162: $6,900.00 | J162: $6,831.00
A163: Acquia | B163: SB.H.HA.SSD.FSS.750 | C163: Acquia Cloud Enterprise HA File System SSD Storage and DR ANNUAL - 750 GB | I163: $20,700.00 | J163: $20,493.00
A164: Acquia | B164: SB.H.HA.SSD.FSS.FI | C164: Acquia Cloud Enterprise HA File System SSD Storage and DR ANNUAL - 50 GB | I164: $1,380.00 | J164: $1,366.20
A165: Acquia | B165: SB.H.HA.SSD.FSS.TW | C165: Acquia Cloud Enterprise HA File System SSD Storage and DR ANNUAL - 25 GB | I165: $690.00 | J165: $683.10
A166: Acquia | B166: SB.H.HA.SSD.FSSDR.500 | C166: Acquia Cloud Enterprise HA File System SSD Storage and DR ANNUAL - 500 GB | I166: $13,800.00 | J166: $13,662.00
A167: Acquia | B167: SB.H.HA.SSD.DEVDB.100 | C167: Acquia Cloud Dev/Stage Database SSD Storage and DR - 100 GB | I167: $1,380.00 | J167: $1,366.20
A168: Acquia | B168: SB.H.HA.SSD.DEVDB.1TB | C168: Acquia Cloud Dev/Stage Database SSD Storage and DR - 1 TB | I168: $13,800.00 | J168: $13,662.00
A169: Acquia | B169: SB.H.HA.SSD.DEVDB.200 | C169: Acquia Cloud Dev/Stage Database SSD Storage and DR - 200 GB | I169: $2,760.00 | J169: $2,732.40
A170: Acquia | B170: SB.H.HA.SSD.DEVDB.25 | C170: Acquia Cloud Dev/Stage Database SSD Storage and DR - 25 GB | I170: $350.00 | J170: $346.50
A171: Acquia | B171: SB.H.HA.SSD.DEVDB.250 | C171: Acquia Cloud Dev/Stage Database SSD Storage and DR - 250 GB | I171: $3,450.00 | J171: $3,415.50
A172: Acquia | B172: SB.H.HA.SSD.DEVDB.50 | C172: Acquia Cloud Dev/Stage Database SSD Storage and DR - 50 GB | I172: $690.00 | J172: $683.10
A173: Acquia | B173: SB.H.HA.SSD.DEVDB.500 | C173: Acquia Cloud Dev/Stage Database SSD Storage and DR - 500 GB | I173: $6,900.00 | J173: $6,831.00
A174: Acquia | B174: SB.H.HA.SSD.DEVDB.750 | C174: Acquia Cloud Dev/Stage Database SSD Storage and DR - 750 GB | I174: $10,350.00 | J174: $10,246.50
A175: Acquia | B175: SB.H.HA.SSD.DEVFS.100 | C175: Acquia Cloud Dev/Stage File System SSD Storage and DR - 100 GB | I175: $1,380.00 | J175: $1,366.20
A176: Acquia | B176: SB.H.HA.SSD.DEVFS.1TB | C176: Acquia Cloud Dev/Stage File System SSD Storage and DR - 1 TB | I176: $13,800.00 | J176: $13,662.00
A177: Acquia | B177: SB.H.HA.SSD.DEVFS.200 | C177: Acquia Cloud Dev/Stage File System SSD Storage and DR - 200 GB | I177: $2,760.00 | J177: $2,732.40
A178: Acquia | B178: SB.H.HA.SSD.DEVFS.25 | C178: Acquia Cloud Dev/Stage File System SSD Storage and DR - 25 GB | I178: $350.00 | J178: $346.50
A179: Acquia | B179: SB.H.HA.SSD.DEVFS.250 | C179: Acquia Cloud Dev/Stage File System SSD Storage and DR - 250 GB | I179: $3,450.00 | J179: $3,415.50
A180: Acquia | B180: SB.H.HA.SSD.DEVFS.50 | C180: Acquia Cloud Dev/Stage File System SSD Storage and DR - 50 GB | I180: $690.00 | J180: $683.10
A181: Acquia | B181: SB.H.HA.SSD.DEVFS.500 | C181: Acquia Cloud Dev/Stage File System SSD Storage and DR - 500 GB | I181: $6,900.00 | J181: $6,831.00
A182: Acquia | B182: SB.H.HA.SSD.DEVFS.750 | C182: Acquia Cloud Dev/Stage File System SSD Storage and DR - 750 GB | I182: $10,350.00 | J182: $10,246.50
A183: Acquia | B183: SB.H.HA.SSD.SS.10 | C183: Acquia Cloud Dev/Stage SSD Storage and DR - 10 GB | I183: $140.00 | J183: $138.60
A184: Acquia | B184: SB.H.HA.SSD.SS.25 | C184: Acquia Cloud Dev/Stage SSD Storage and DR - 25 GB | I184: $350.00 | J184: $346.50
A185: Acquia | B185: SB.H.ACP.00001.S7N | C185: ACP Starter Code Base 1 - S7N | I185: $7,940.00 | J185: $7,860.60
A186: Acquia | B186: SB.H.ACP.00004.S7N | C186: ACP Starter Code Base 10 - S7N | I186: $21,160.00 | J186: $20,948.40
A187: Acquia | B187: SB.H.ACP.00007.S7N | C187: ACP Starter Code Base 20 - S7N | I187: $31,080.00 | J187: $30,769.20
A188: Acquia | B188: SB.H.ACP.00011.S7N | C188: ACP Basic Code Base 1 - S7N | I188: $16,530.00 | J188: $16,364.70
A189: Acquia | B189: SB.H.ACP.00014.S7N | C189: ACP Basic Code Base 10 - S7N | I189: $29,760.00 | J189: $29,462.40
A190: Acquia | B190: SB.H.ACP.00017.S7N | C190: ACP Basic Code Base 20 - S7N | I190: $39,680.00 | J190: $39,283.20
A191: Acquia | B191: SB.H.ACP.00020.S7N | C191: ACP Business Code Base 1 - S7N | I191: $36,370.00 | J191: $36,006.30
A192: Acquia | B192: SB.H.ACP.00023.S7N | C192: ACP Business Code Base 10 - S7N | I192: $49,590.00 | J192: $49,094.10
A193: Acquia | B193: SB.H.ACP.00026.S7N | C193: ACP Business Code Base 20 - S7N | I193: $59,510.00 | J193: $58,914.90
A194: Acquia | B194: SB.H.ACP.00030.S7N | C194: ACP Premium Code Base 1 - S7N | I194: $56,210.00 | J194: $55,647.90
A195: Acquia | B195: SB.H.ACP.00033.S7N | C195: ACP Premium Code Base 10 - S7N | I195: $69,430.00 | J195: $68,735.70
A196: Acquia | B196: SB.H.ACP.00036.S7N | C196: ACP Premium Code Base 20 - S7N | I196: $79,350.00 | J196: $78,556.50
A197: Acquia | B197: SB.H.ACP.00037 | C197: Acquia Cloud Professional Per Additional Code Base Fee (2-9) | I197: $1,650.00 | J197: $1,633.50
A198: Acquia | B198: SB.H.ACP.00038 | C198: Acquia Cloud Professional Per Additional Code Base Fee (10-19) | I198: $1,375.00 | J198: $1,361.25
A199: Acquia | B199: SB.H.ACE.00076 | C199: Acquia Cloud Professional Per Additional Code Base Fee (20-49) | I199: $1,265.00 | J199: $1,252.35
A200: Acquia | B200: SB.H.ACE.00001.2017 | C200: ACE Basic Code Base 1 - S7N | I200: $26,450.00 | J200: $26,185.50
... 4300 more rows

Sheet Pricing Discounts
A1: Attachment C – Cost Schedule
A3: Discounts for Cloud Solutions by Category
A4: Category | B4: Provider | C4: Discount %
A5: Software as a Service | B5: Microsoft (non-CSP) | C5: 10%
B6: Microsoft (CSP) | C6: 2%
B7: Amazon Web Services | C7: 1%
B8: Additional Approved Cloud Providers | C8: 1%
A9: Infrastructure as a Service | B9: Microsoft (non-CSP) | C9: 10%
B10: Microsoft (CSP) | C10: 2%
B11: Amazon Web Services | C11: 1%
B12: Additional Approved Cloud Providers | C12: 1%
A13: Platform as a Service | B13: Microsoft (non-CSP) | C13: 10%
B14: Microsoft (CSP) | C14: 2%
B15: Amazon Web Services | C15: 1%
B16: Additional Approved Cloud Providers | C16: 1%
A18: Value Added Services Discounts
A19: Service Type | B19: Discount %
A20: Insight-Provided | B20: 1%
A21: Partner-Provided | B21: 1%
A23: Labor Category Hourly Rates
A24: Labor Category | B24: Hourly Rate
A25: Specialty Services | B25: $450.00
A26: Sr. Mgr. Services | B26: $350.00
A27: Mgr. Services | B27: $300.00
A28: Sr. Architect | B28: $300.00
A29: Architect II | B29: $275.00
A30: Client Services Mgr. | B30: $275.00
A31: Architect I | B31: $250.00
A32: Mgr. Programs | B32: $250.00
A33: Consultant II | B33: $225.00
A34: Principal Software Engineer | B34: $225.00
A35: Sr. Business Architect | B35: $225.00
A36: Sr. Consultant | B36: $225.00
A37: Mgr. Programs | B37: $215.00
A38: Sr. Software Engineer | B38: $190.00
A39: Business Architect | B39: $185.00
A40: Consultant I | B40: $185.00
A41: Software Engineer | B41: $185.00
A42: Sr. Business Analyst | B42: $185.00
A43: Sr. Project Manager | B43: $185.00
A44: Business Analyst II | B44: $150.00
A45: Business Analyst I | B45: $150.00
A46: Project Manager | B46: $150.00
A47: Associate Consultant | B47: $145.00
A48: Associate Software Engineer | B48: $145.00
A49: Sr. Project Coordinator | B49: $95.00
A50: Associate II | B50: $90.00
A51: Project Coordinator | B51: $85.00
A52: Associate I | B52: $75.00
